Cogmind - Beta 14 @@@ ROGUE MODE // 2024.09.03 @ 02:28:25 Player: CONM Result: Destroyed by IF-A69(j) with Overtuned Pulse Rifle Performance ------------- Evolutions (1) 500 Regions Visited (4) 800 Robots Destroyed (26) 130 Value Destroyed (664) 664 Prototype IDs (2) 40 Alien Tech Used (0) 0 Bonus (168) 168 TOTAL SCORE: 2302 Bonus ------- Follower Combat Kills 168 Cogmind --------- Core Integrity 0/400 Matter 295/300 Energy 99/100 System Corruption 14% Temperature Warm (182) Movement Core (250) Ox4 Location -9/Recycling Parts ------- > --- POWER (1) -------- (None) > --- PROPULSION (3) --- (None) > --- UTILITY (3) ------ Scrap Engine Medium Storage Unit > --- WEAPON (2) ------- Mace > --- INVENTORY (10) --- Ion Engine Ion Engine Light Ion Engine Light Nuclear Core Cooling System Large Storage Unit Terrain Scanner Seismic Detector Mini Grenade Launcher Peak State ------------ > --- POWER ------------ Improved Ion Engine > --- PROPULSION ------- Aluminum Leg Aluminum Leg Wheel > --- UTILITY ---------- Scrap Engine Medium Storage Unit > --- WEAPON ----------- Mace > --- INVENTORY -------- Ion Engine Ion Engine Light Ion Engine Light Nuclear Core Cooling System Large Storage Unit Terrain Scanner Seismic Detector Mini Grenade Launcher Mini Grenade Launcher [Rating: 27] Favorites ----------- Power Light Ion Engine Engine Light Ion Engine Propulsion Aluminum Leg Leg Aluminum Leg Wheel Wheel Utility Medium Storage Unit Device Seismic Detector Storage Medium Storage Unit Protection Light Armor Plating Weapon Light Assault Rifle Ballistic Gun Light Assault Rifle Launcher Grenade Launcher Special Weapon Welding Torch Impact Weapon Mace Slashing Weapon Mining Claw Special Melee Weapon Datajack Build | -11 -10 -9 -9 -9 ------- Run | Yrd Mat Mat Sto Rec Slots Evolved 2 | . . 2 . . Power . | . . . . . Propulsion 1 | . . 1 . . Utility 1 | . . 1 . . Weapon . | . . . . . Parts Attached 31 | 6 6 8 5 6 Power 5 | 1 1 1 2 . Engine 5 | 1 1 1 2 . Core . | . . . . . Reactor . | . . . . . Propulsion 7 | 2 . 1 2 2 Treads . | . . . . . Leg 6 | 2 . . 2 2 Wheel 1 | . . 1 . . Hover . | . . . . . Flight . | . . . . . Utility 7 | 2 1 2 . 2 Device 3 | 1 . . . 2 Storage 2 | 1 1 . . . Processor . | . . . . . Hackware . | . . . . . Protection 2 | . . 2 . . Artifact . | . . . . . Weapon 12 | 1 4 4 1 2 Energy Gun . | . . . . . Energy Cannon . | . . . . . Ballistic Gun 1 | 1 . . . . Ballistic Cannon . | . . . . . Launcher 4 | . 2 1 . 1 Special Weapon 1 | . . . . 1 Impact Weapon 2 | . . 2 . . Slashing Weapon 3 | . 2 1 . . Piercing Weapon . | . . . . . Special Melee Weapon 1 | . . . 1 . Unidentified Prototypes 2 | . . . 1 1 Corrupted Parts 2 | . . . 2 . System Corruption 14 | . . . 14 . Parts Lost 12 | . 1 2 3 6 Power 2 | . 1 . . 1 Propulsion 6 | . . 1 1 4 Utility 2 | . . . 2 . Weapon 2 | . . 1 . 1 Highest Loss Streak 6 | . 1 1 2 6 To Critical Strikes . | . . . . . Average Slot Usage (%) 83 | . 93 74 79 79 Engine 11 | . 13 11 11 10 Leg 21 | . 28 14 19 20 Wheel 4 | . . 2 11 9 Device 9 | . 14 11 1 7 Storage 12 | . 14 11 11 11 Protection 2 | . . 6 4 . Ballistic Gun 7 | . 14 7 . . Launcher 1 | . . 2 . . Impact Weapon 5 | . . 7 11 11 Slashing Weapon 3 | . 7 . . . Special Melee Weapon 3 | . . . 10 6 Peak Build Rating 27 | 6 8 10 11 27 Average Rating 8 | 4 6 9 10 12 On Entrance 6 | . 6 8 10 10 Naked Turns . | . . . . . Heaviest Build 25 | 10 20 25 24 20 Greatest Support 26 | 20 20 20 20 26 Greatest Overweight (x) 4 | 2 . 2 2 4 Average Overweight (x) . | . . 1 . . Largest Inventory Capacity 10 | 8 10 10 10 10 Average Capacity 9 | 7 8 10 10 10 Most Carried 10 | 2 10 10 10 10 Average Carried 7 | 1 6 9 9 9 Final Capacity 10 | 8 10 10 10 10 Final Carried 10 | 2 9 10 10 9 Class Distribution -------------------- 67% | Mutant 23% | Scavenger-Mutant 8% | Commander-Mutant Dominant Class ---------------- Mutant | -10/Materials Mutant | -9/Materials Commander-Mutant | -9/Storage Scavenger-Mutant | -9/Recycling Resources | -11 -10 -9 -9 -9 ----------- Run | Yrd Mat Mat Sto Rec Matter Collected 667 | 244 122 146 35 120 Remotely . | . . . . . Salvage Created 806 | 60 182 259 100 205 Parts 40 | 6 9 19 2 4 Haulers Intercepted . | . . . . . Recyclers Shooed . | . . . . . Parts Field Recycled . | . . . . . Retrieved Matter . | . . . . . Parts Self-Destructed . | . . . . . Prevented . | . . . . . Kills | -11 -10 -9 -9 -9 ------- Run | Yrd Mat Mat Sto Rec Combat Hostiles Destroyed 17 | . 7 6 2 2 Melee 6 | . 5 1 . . AOE 8 | . 2 4 . 2 Classes Destroyed 11 | 1 2 4 1 3 Worker 1 | . . 1 . . Builder 1 | . . 1 . . Tunneler 4 | 3 1 . . . Recycler 1 | . . . . 1 Mechanic 1 | . . 1 . . Operator 1 | . . . 1 . Swarmer 3 | . 3 . . . Grunt 9 | . 4 3 2 . Sentry 3 | . . 3 . . Scientist 1 | . . . . 1 Scrapper 2 | . . . . 2 Best Kill Streak 3 | 1 3 3 2 3 Combat Bots Only 3 | . 3 3 2 2 Max Kills in Single Turn 2 | 1 2 2 1 1 Gunslinging . | . . . . . Exploded 2 | . 2 2 . 1 Melee 1 | . 1 1 . . Uniques/NPCs Destroyed . | . . . . . Combat | -11 -10 -9 -9 -9 -------- Run | Yrd Mat Mat Sto Rec Hostile Shots Fired 124 | . 41 27 17 39 Missed 22 | . 9 8 3 2 Damage Taken 1760 | . 406 290 154 910 Core 531 | . 122 110 11 288 Absorbed by Shields . | . . . . . Core Remaining (%) 75 | 100 51 . . . Volleys Fired 40 | 27 5 5 . 3 Largest 2 | 1 2 2 . 1 Hottest 50 | 20 50 50 . 30 Shots Fired 49 | 27 9 10 . 3 Gun 37 | 27 5 5 . . Cannon . | . . . . . Launcher 12 | . 4 5 . 3 Special . | . . . . . Kinetic 37 | 27 5 5 . . Thermal . | . . . . . Explosive 12 | . 4 5 . 3 Electromagnetic . | . . . . . Robot Hit Streak 15 | 5 4 14 . 15 Robot Miss Streak 5 | 5 1 . . 1 Penetration Max . | . . . . . Secondary Targets . | . . . . . Shots Hit Robots 63 | 15 19 19 6 4 Core Hits 33 | 7 12 11 . 3 Critical Kills 2 | . . 2 . . Critical Parts Destroyed 5 | . . 2 1 2 Critical Strikes 7 | . . 4 1 2 Smash 7 | . . 4 1 2 Melee Attacks 46 | . 22 14 7 3 Impact 23 | . . 13 7 3 Slashing 23 | . 22 1 . . Piercing . | . . . . . Sneak Attacks 8 | . . 4 2 2 Combat Hostiles . | . . . . . Follow-up Attacks . | . . . . . Damage Inflicted 2037 | 114 540 769 261 353 Guns 174 | 114 16 44 . . Cannons . | . . . . . Explosions 792 | . 222 371 . 199 Melee 1071 | . 302 354 261 154 Ramming . | . . . . . Kinetic 174 | 114 16 44 . . Thermal . | . . . . . Explosive 792 | . 222 371 . 199 Electromagnetic . | . . . . . Impact 769 | . . 354 261 154 Slashing 302 | . 302 . . . Piercing . | . . . . . Highest Corruption 14 | . . . 14 14 Average Corruption 13 | . . . 13 14 Corruption Purged . | . . . . . Corruption Blocked . | . . . . . Effects 22 | . . . 10 12 Message Errors 4 | . . . 2 2 Matter Fused 7 | . . . 4 3 Heat Flow Errors 4 | . . . 1 3 Energy Discharges 6 | . . . 2 4 Data Loss (minor) 1 | . . . 1 . Overload Shots . | . . . . . Overflow Damage 314 | . . 112 62 140 Projectiles . | . . . . . Explosions 8 | . . . . 8 Melee 306 | . . 112 62 132 Knockbacks 2 | . . 1 . 1 Impact 2 | . . 1 . 1 Kinetic . | . . . . . Secondary . | . . . . . Self-Inflicted Damage 159 | . 27 12 . 120 Shots 7 | . 3 1 . 3 Rammed . | . . . . . Targets Rammed . | . . . . . Kicked . | . . . . . Crushed . | . . . . . Highest Temperature 366 | . 32 10 81 366 Average Temperature 119 | . 15 5 41 188 Received Heat Transfer 914 | . 213 120 87 494 Siege Activations . | . . . . . Robots Corrupted 6 | . . 2 2 2 Combat Hostiles 3 | . . 1 2 . Parts Fried 13 | . . 6 5 2 Impact Corruptions 14 | . . 5 3 6 Robots Melted . | . . . . . Combat Hostiles . | . . . . . Parts Melted 1 | . . . . 1 Heat Transferred . | . . . . . Parts Sabotaged . | . . . . . Parts Stolen . | . . . . . Parts Stripped . | . . . . . Power Chain Reactions . | . . . . . Alert | -11 -10 -9 -9 -9 ------- Run | Yrd Mat Mat Sto Rec Peak Influence 334 | 15 191 312 334 136 Initial 131 | . 9 80 131 130 Average 121 | 4 57 234 211 120 Maximum Alert Level 1 | . . 1 1 . Low Security (%) 76 | 100 100 28 48 100 Level 1 23 | . . 71 51 . Level 2 . | . . . . . Level 3 . | . . . . . Level 4 . | . . . . . Level 5 . | . . . . . High Security . | . . . . . Max Security . | . . . . . Squads Dispatched 3 | . 1 1 1 . Investigation . | . . . . . Extermination . | . . . . . Reinforcement 3 | . 1 1 1 . Assault . | . . . . . Garrison . | . . . . . Intercept . | . . . . . Searches Triggered . | . . . . . Construction Impeded 1 | . . 1 . . Haulers Reinforced . | . . . . . Active Scanning Responses . | . . . . . Cargo Convoy Interrupts . | . . . . . Stealth | -11 -10 -9 -9 -9 --------- Run | Yrd Mat Mat Sto Rec Distress Signals 5 | . 3 2 . . Communications Jammed . | . . . . . Distress Signals . | . . . . . Times Spotted 25 | . 11 7 4 3 Peak Tracking Total 7 | . 7 3 2 4 Tactical Retreats 2 | . 2 . . . Traps | -11 -10 -9 -9 -9 ------- Run | Yrd Mat Mat Sto Rec Traps Triggered . | . . . . . Indirectly . | . . . . . Trap Hack Attempts . | . . . . . Triggered . | . . . . . Disarmed . | . . . . . Reprogrammed . | . . . . . Reused . | . . . . . Traps Extracted . | . . . . . Installed . | . . . . . Triggered . | . . . . . Machines | -11 -10 -9 -9 -9 ---------- Run | Yrd Mat Mat Sto Rec Machines Disabled 1 | . . . . 1 Max in Single Turn 1 | . . . . 1 Garrison Access 1 | . . . 1 . Machines Repaired . | . . . . . Machines Dismantled . | . . . . . Machines Sabotaged . | . . . . . Overloaded Fab Kills . | . . . . . Hacking | -11 -10 -9 -9 -9 --------- Run | Yrd Mat Mat Sto Rec Machines Accessed 13 | . 5 1 4 3 Terminals 10 | . 5 1 3 1 Fabricators . | . . . . . Repair Stations . | . . . . . Recycling Units 1 | . . . . 1 Scanalyzers . | . . . . . Garrison Access 1 | . . . 1 . Total Hacks 31 | . 13 3 5 10 Successful 19 | . 7 . 4 8 Failed 12 | . 6 3 1 2 Catastrophic 3 | . 1 . 1 1 Database Lockouts . | . . . . . Manual 9 | . 4 3 2 . Terminals 21 | . 13 3 3 2 Fabricators . | . . . . . Repair Stations . | . . . . . Recycling Units 1 | . . . . 1 Scanalyzers . | . . . . . Garrison Access 2 | . . . 2 . Terminal Hacks 14 | . 4 . 3 7 Record 5 | . . . . 5 Robot Analysis 1 | . . . 1 . Open Door 2 | . . . 2 . Terminal Index 1 | . 1 . . . Alert Level 2 | . 2 . . . Hauler Manifests 1 | . 1 . . . Release Object 2 | . . . . 2 Fabricator Hacks . | . . . . . Repair Station Hacks . | . . . . . Recycling Unit Hacks 1 | . . . . 1 Report Inventory 1 | . . . . 1 Scanalyzer . | . . . . . Garrison Access Hacks 1 | . . . 1 . Seal Access 1 | . . . 1 . Unauthorized Hacks 3 | . 3 . . . Terminals 3 | . 3 . . . Track 1 | . 1 . . . Assimilate 1 | . 1 . . . Botnet 1 | . 1 . . . Fabricators . | . . . . . Repair Stations . | . . . . . Recycling Units . | . . . . . Scanalyzers . | . . . . . Garrison Access . | . . . . . Data Cores Recovered . | . . . . . Used . | . . . . . Hacking Detections 8 | . 4 1 2 1 Full Trace Events 1 | . . . . 1 Feedback Events . | . . . . . Feedback Blocked . | . . . . . Robot Schematics Acquired . | . . . . . Robots Built . | . . . . . Authchips . | . . . . . Time . | . . . . . Total Robot Build Rating . | . . . . . Part Schematics Acquired . | . . . . . Parts Built . | . . . . . Authchips . | . . . . . Time . | . . . . . Total Part Build Rating . | . . . . . Parts Repaired . | . . . . . Time . | . . . . . Parts Recycled . | . . . . . Recycled Matter . | . . . . . Retrieved Matter . | . . . . . Retrieved Components . | . . . . . Parts Scanalyzed . | . . . . . Part Schematics Acquired . | . . . . . Parts Damaged . | . . . . . Bothacking | -11 -10 -9 -9 -9 ------------ Run | Yrd Mat Mat Sto Rec Used RIF Installer . | . . . . . Robots Hacked . | . . . . . Non-combat . | . . . . . Combat . | . . . . . Robot Hacks Applied . | . . . . . Relay Couplers Released . | . . . . . Fabnet Peak Effective % . | . . . . . Robots Rewired . | . . . . . Allies Hacked . | . . . . . Hacks Repelled . | . . . . . Allies | -11 -10 -9 -9 -9 -------- Run | Yrd Mat Mat Sto Rec Total Allies 10 | . . . 10 . Largest Group 10 | . . . 10 4 Highest-Rated Group 88 | . . . 88 32 Highest-Rated Ally 16 | . . . 16 8 Total Orders . | . . . . . Ally Attacks 62 | . . . 52 10 Total Damage 541 | . . . 464 77 Kills 6 | . . . 6 . Allies Corrupted . | . . . . . Allies Melted . | . . . . . Intel | -11 -10 -9 -9 -9 ------- Run | Yrd Mat Mat Sto Rec Robot Analysis Total 1 | . . . 1 . Derelict Logs Recovered . | . . . . . Drone Launches . | . . . . . Drone Recoveries . | . . . . . Exploration | -11 -10 -9 -9 -9 ------------- Run | Yrd Mat Mat Sto Rec Turns Passed 1711 | 223 599 367 268 254 Spaces Moved 1110 | 140 414 192 176 188 Core 28 | 26 . . . 2 Treads . | . . . . . Legs 999 | 114 414 143 142 186 Wheels 83 | . . 49 34 . Hover . | . . . . . Flight . | . . . . . Fastest Speed 50 | 50 120 110 110 120 Average Speed 127 | 115 120 157 126 123 Slowest Speed 260 | 150 120 260 260 250 Overloaded Moves . | . . . . . Propulsion Burnouts . | . . . . . Robots Hopped . | . . . . . Cave-ins Triggered . | . . . . . Exploration Rate (%) 27 | 7 50 13 26 40 Regions Visited 4 Branch Regions 2 Pre-discovered Areas . | . . . . . Known Exits Taken . | . . . . . Unknown Exits Taken 4 | 1 1 1 1 . Scrap Searched . | . . . . . Spaces Dug 4 | . 1 3 . . Terrain Destroyed 88 | . 29 38 . 21 Melee 4 | . 1 3 . . Projectile . | . . . . . AOE 84 | . 28 35 . 21 Terrain Rammed . | . . . . . Walls Destroyed . | . . . . . Machines Disabled . | . . . . . Actions | -11 -10 -9 -9 -9 --------- Run | Yrd Mat Mat Sto Rec Total 1273 | 177 462 221 210 203 Wait 28 | 3 7 . 18 . Move 1106 | 139 413 191 175 188 Hop . | . . . . . Pick Up 14 | 2 8 1 3 . Fast Attach 15 | 6 1 2 2 4 Attach 3 | . 1 . 1 1 Detach . | . . . . . Swap 13 | . 4 6 2 1 Drop 8 | . 1 2 2 3 Fire 40 | 27 5 5 . 3 Melee 46 | . 22 14 7 3 Ram . | . . . . . Kick . | . . . . . Crush . | . . . . . Escape Stasis . | . . . . . Rewire . | . . . . . Trap . | . . . . . Miscellaneous . | . . . . . Route ------- -11/Scrapyard -10/Materials (discovered 2 exits: *Mat x2) -9/Materials (discovered 3 exits: [*Min] / *Sto x2) -9/Storage -9/Recycling History --------- Turn | Location | Event 28 | -11/Scrapyard | Discovered new exit (range 16) 224 | -11/Scrapyard | Entered Materials 300 | -10/Materials | Discovered new exit (range 8) 303 | -10/Materials | Build established: Mutant 605 | -10/Materials | Discovered new exit (range 9) 823 | -10/Materials | Entered another Materials area 823 | -9/Materials | Evolved 2 slots: Propulsion x1, Utility x1 823 | -9/Materials | Discovered new exit (range 9) 870 | -9/Materials | Discovered new exit (range 16) 891 | -9/Materials | Discovered new exit (range 13) 1190 | -9/Materials | Entered Storage 1245 | -9/Storage | System corruption reached 10% 1306 | -9/Storage | Assisted by bots powering up and referring to "LRC-V3" 1449 | -9/Storage | Used back door to open Recycling access 1449 | -9/Storage | Discovered new exit (range 4) 1458 | -9/Storage | Entered Recycling 1458 | -9/Recycling | Accompanied by 4 allies 1655 | -9/Recycling | Scanned before Scraplab entrance 1674 | -9/Recycling | Entered Scraplab 1677 | -9/Recycling | Angered Scraplab inhabitants 1679 | -9/Recycling | Found Prototype Device 1679 | -9/Recycling | Identified Scrap Engine 1695 | -9/Recycling | Core integrity fell below 50% 1705 | -9/Recycling | Core integrity fell below 20% 1712 | -9/Recycling | Destroyed by IF-A69(j) with Overtuned Pulse Rifle Last Messages --------------- 01685_ Mercenary 2e destroyed. 01686_ Aluminum Leg destroyed. 01687_ Acquired Aluminum Leg. 01689_ System corrupted: Heat flow error (+281). 01689_ Aluminum Leg destroyed. 01692_ Machine disabled. 01693_ Imp. Ion Engine destroyed. 01694_ Critical hit (Burn: +50). 01694_ AA-RDO(j) destroyed. 01699_ Acquired Aluminum Leg. 01700_ Acquired 9 matter. 01704_ System corrupted: Energy discharge (-20). 01704_ Acquired 61 matter. 01708_ Aluminum Leg destroyed. 01708_ Critical hit (Burn: +50). 01710_ Mak. Salvage Targeting Computer melted. 01710_ OF-MVH(j) destroyed. 01710_ Mni. Grenade Launcher destroyed. 01710_ Destroyed Mni. Grenade Launcher. 01712_ The unstable cave ceiling collapses. Map ----- +----------------------------------------------------+ | | | | | | | | | | | | | | | | | | | | | | | | | | | | | | | | | | | | | | | | | ?????????????????????????#############???????????? | | ????????????????????????# #"""""""#???????????? | | ????????????????????????# #!"%X " ## #????????? | | ???????????????????????## #=[=! j #????????? | | ??????????????????????## * *%*[!% #????????? | | ??????????????????????# @ ##*! "#????????? | | ??????????????????????## #= ""#????????? | | ???????????????????????# ## ## & & X ""#????????? | | ???????????????????????# #?### """"""" #????????? | | ????????????????????#### ################????????? | | ????????????????????# | #????????????????????? | | ????????????????????# #????????????????????? | | ????????????????????# #????????????????????? | | ????????????????????# #????????????????????? | | ????????????????????####+####????????????????????? | | ???????????????????????# #???????????????????????? | | ??????????????########## #???????????????????????? | | ??????????????# """ + #???????????????????????? | | ??????????????# "Y" ###???????????????????????# | | ??????????????+ ""#???????????????????????# | | ??????????????# T"#????####+#????????????? | | ??????????????# ""#????# #????#####????# | | ??????????????+ """ ###????# #????#|||#????# | | ??????????????# """ ######## ###### | ###### | | ??????????????# """ / | | ??????????????# ## | | ??????????????####"Y"#### "T" | | ?????????????????#"""#??# | | ?????????????????#####??# | | ????????????????????????# """ """ | +----------------------------------------------------+ Best States ------------- Heat Dissipation 28 Energy Generation 14 Energy Capacity 280 Matter Stores 300 Matter Capacity 300 Sight Range 16 Terrain Scan Density 10 Additional Mass Support 6 Armor Coverage 150 Evasion (%) 55 Item Schematics ----------------- None Robot Schematics ------------------ None Fabricated ------------ Nothing Alien Tech Used ----------------- None Achievements -------------- None Challenges ------------ None Game ------ Seed TransdimensionalBraceWarhead Manual? 0 Play Time 00:24:54 Cumulative 68.3 hours Start 2024.09.03 @ 02:01:31 End 2024.09.03 @ 02:28:25 Sessions 1 Manual Loads 0 Difficulty Rogue Special Mode None Game No. 92 Rogue 92 Adventurer 0 Explorer 0 Win Type - Total 0 Types 0/0/0/0/0/0/0/0/0 Lore% 35 Gallery% 35 Achievement% 38 Wizard Run 0 Options --------- Layout 0 ASCII 0 Keyboard 0 Movement Arrows Keybinds 0 Fullscreen 1 Font 20/SmallcapsGlow Map View 66x50 Zoom Use 0% Tactical HUD 1 Map Filters NONE Filters NONE Steam 1 RUN: 059020fd-f389-459f-9dbb-b3558c9c238d